fUSD/lending_fUSD_20250812
["ID","MTS","AMOUNT","RATE_DAILY","PERIOD"]
[378762071,1755004261196,-400.0,0.00044657,120]
[378762072,1755004261206,-1996.28,0.00044657,120]
[378762073,1755004261215,-525.76765109,0.00044657,120]
[378762074,1755004261224,-400.0,0.00044657,120]
[378762075,1755004261234,-153.03817615,0.00044657,120]
[378762076,1755004261243,-400.0,0.00044657,120]
[378762077,1755004261253,-400.0,0.00044657,120]
[378762078,1755004261263,-1210.58,0.00044657,120]
[378762079,1755004261273,-475.0798583,0.00044657,120]
[378762080,1755004261283,-400.0,0.00044657,120]
[378762081,1755004261293,-400.0,0.00044657,120]
[378762082,1755004261302,-400.0,0.00044657,120]
[378762083,1755004261312,-400.0,0.00044657,120]
[378762084,1755004261321,-400.0,0.00044657,120]
[378762085,1755004261331,-375.31431306,0.00044657,120]
[378762086,1755004261342,-400.0,0.00044657,120]
[378762087,1755004261351,-400.0,0.00044657,120]
[378762088,1755004261360,-163.27157059,0.00044657,120]
[378762089,1755004261370,-440.92,0.00044657,120]
[378762090,1755004261380,-400.0,0.00044657,120]
[378762091,1755004261390,-1445.32,0.00044657,120]
[378762092,1755004261400,-942.94,0.00044657,120]
[378762093,1755004261409,-400.0,0.00044657,120]
[378762094,1755004261419,-400.0,0.00044657,120]
[378762095,1755004261429,-400.0,0.00044657,120]
[378762096,1755004261438,-400.0,0.00044657,120]
[378762097,1755004261447,-474.77,0.00044657,120]
[378762098,1755004261457,-400.0,0.00044657,120]
[378762099,1755004261466,-292.9,0.00044657,120]
[378762100,1755004261475,-946.3,0.00044657,120]
[378762101,1755004261485,-400.0,0.00044657,120]
[378762102,1755004261495,-400.0,0.00044657,120]
[378762103,1755004261505,-886.95,0.00044657,120]
[378762104,1755004261515,-400.0,0.00044657,120]
[378762105,1755004261524,-400.0,0.00044657,120]
[378762106,1755004261534,-400.0,0.00044657,120]
[378762107,1755004261543,-150.04595576,0.00044657,120]
[378762108,1755004261552,-449.2092197,0.00044657,120]
[378762109,1755004261561,-646.08,0.00044657,120]
[378762110,1755004261571,-400.0,0.00044657,120]
[378762111,1755004261580,-400.0,0.00044657,120]
[378762112,1755004261589,-322.56913583,0.00044657,120]
[378762113,1755004261599,-1283.2,0.00044657,120]
[378762114,1755004261608,-400.0,0.00044657,120]
[378762115,1755004261618,-400.0,0.00044657,7]
[378762116,1755004261627,-219.15583607,0.00044657,120]
[378762117,1755004261636,-400.0,0.00044657,120]
[378762118,1755004261646,-400.0,0.00044657,120]
[378762119,1755004261655,-400.0,0.00044657,120]
[378762120,1755004261665,-456.38667982,0.00044657,120]
[378762121,1755004261674,-400.0,0.00044657,120]
[378762122,1755004261683,-400.0,0.00044657,120]
[378762123,1755004261692,-400.0,0.00044657,120]
[378762124,1755004261703,-1298.0,0.00044657,120]
[378762125,1755004261713,-400.0,0.00044657,120]
[378762126,1755004261722,-400.0,0.00044657,120]
[378762127,1755004261732,-418.22,0.00044657,120]
[378762128,1755004261741,-537.81,0.00044657,120]
[378762129,1755004261751,-400.0,0.00044657,120]
[378762130,1755004261762,-400.0,0.00044657,120]
[378762131,1755004261772,-400.0,0.00044657,120]
[378762132,1755004261782,-400.0,0.00044657,120]
[378762133,1755004261791,-570.46,0.00044657,120]
[378762134,1755004261801,-357.42548549,0.00044657,120]
[378762135,1755004261811,-1050.58,0.00044657,120]
[378762136,1755004261820,-471.06,0.00044657,120]
[378762137,1755004261829,-249.73034399,0.00044657,120]
[378762138,1755004261839,-400.0,0.00044657,120]
[378762139,1755004261849,-401.62,0.00044657,120]
[378762140,1755004261859,-713.9,0.00044657,120]
[378762141,1755004261868,-400.0,0.00044657,120]
[378762142,1755004261878,-400.0,0.00044657,120]
[378762143,1755004261888,-400.0,0.00044657,120]
[378762144,1755004261899,-671.5,0.00044657,120]
[378762145,1755004261909,-178.98344269,0.00044657,120]
[378762146,1755004261919,-2152.61,0.00044657,120]
[378762147,1755004261929,-400.0,0.00044657,120]
[378762148,1755004261939,-534.03,0.00044657,120]
[378762149,1755004261949,-473.25,0.00044657,120]
[378762150,1755004261960,-400.0,0.00044657,120]
[378762151,1755004261969,-400.0,0.00044657,120]
[378762152,1755004261979,-480.06758702,0.00044657,120]
[378762153,1755004261989,-698.9,0.00044657,120]
[378762154,1755004261999,-400.0,0.00044657,120]
[378762155,1755004262010,-400.0,0.00044657,120]
[378762156,1755004262020,-400.0,0.00044657,120]
[378762157,1755004262030,-490.50428773,0.00044657,120]
[378762158,1755004262039,-239.84119403,0.00044675,120]
[378762159,1755004262050,-151.0,0.00044675,120]
[378762160,1755004262059,-160.0,0.00044675,120]
[378762161,1755004262073,-396.60237029,0.00044675,120]
[378762162,1755004262084,-250.0,0.00044675,120]
[378762163,1755004262094,-250.0,0.00044675,120]
[378762164,1755004262104,-250.0,0.00044675,120]
[378762165,1755004262114,-250.0,0.00044675,120]
[378762166,1755004262123,-250.0,0.00044675,120]
[378762167,1755004262133,-250.0,0.00044675,120]
[378762168,1755004262143,-250.0,0.00044675,120]
[378762169,1755004262152,-250.0,0.00044675,120]
[378762170,1755004262162,-34452.52609653,0.00044676,120]
[378762171,1755004262171,-500.0,0.00044676,120]
[378762172,1755004262181,-500.0,0.00044676,120]
[378762173,1755004262190,-500.0,0.00044676,120]
[378762174,1755004262199,-500.0,0.00044676,120]
[378762175,1755004262208,-500.0,0.00044676,120]
[378762176,1755004262218,-502.0,0.00044676,120]
[378762177,1755004262227,-168.0,0.00044695,2]
[378762178,1755004262237,-167.47,0.000447,14]
[378762179,1755004262247,-1243.37117091,0.00044797,15]
[378762180,1755004262257,-190.452964,0.00044911,30]
[378762181,1755004262266,-873.09,0.00044931,120]
[378762182,1755004262276,-400.0,0.00044931,120]
[378762183,1755004262285,-400.23,0.00044931,120]
[378762184,1755004262294,-400.0,0.00044931,120]
[378762185,1755004262304,-400.0,0.00044931,120]
[378762186,1755004262314,-416.02,0.00044931,120]
[378762187,1755004262324,-473.28,0.00044931,120]
[378762188,1755004262333,-586.46,0.00044931,120]
[378762189,1755004262343,-400.0,0.00044931,120]
[378762190,1755004262353,-1996.28,0.00044931,120]
[378762191,1755004262362,-400.0,0.00044931,120]
[378762192,1755004262372,-400.0,0.00044931,120]
[378762193,1755004262382,-400.0,0.00044931,120]
[378762194,1755004262392,-1210.58,0.00044931,120]
[378762195,1755004262402,-400.0,0.00044931,120]
[378762196,1755004262411,-400.0,0.00044931,120]
[378762197,1755004262421,-400.0,0.00044931,120]
[378762198,1755004262430,-400.0,0.00044931,120]
[378762199,1755004262440,-400.0,0.00044931,120]
[378762200,1755004262449,-356.47159655,0.00044931,120]
[378762201,1755004262459,-400.0,0.00044931,120]
[378762202,1755004262469,-440.92,0.00044931,120]
[378762203,1755004262478,-400.0,0.00044931,120]
[378762204,1755004262488,-1445.32,0.00044931,120]
[378762205,1755004262497,-942.94,0.00044931,120]
[378762206,1755004262508,-400.0,0.00044931,120]
[378762207,1755004262518,-400.0,0.00044931,120]
[378762208,1755004262527,-400.0,0.00044931,120]
[378762209,1755004262537,-400.0,0.00044931,120]
[378762210,1755004262546,-474.77,0.00044931,120]
[378762211,1755004262556,-400.0,0.00044931,120]
[378762212,1755004262565,-946.3,0.00044931,120]
[378762213,1755004262575,-400.0,0.00044931,120]
[378762214,1755004262584,-400.0,0.00044931,120]
[378762215,1755004262594,-886.95,0.00044931,120]
[378762216,1755004262603,-400.0,0.00044931,120]
[378762217,1755004262613,-400.0,0.00044931,120]
[378762218,1755004262623,-400.0,0.00044931,120]
[378762219,1755004262632,-646.08,0.00044931,120]
[378762220,1755004262642,-400.0,0.00044931,120]
[378762221,1755004262652,-400.0,0.00044931,120]
[378762222,1755004262661,-1283.2,0.00044931,120]
[378762223,1755004262670,-168.52453066,0.00044931,120]
[378762224,1755004262679,-463.60298812,0.00044931,7]
[378762225,1755004262689,-400.0,0.00044931,120]
[378762226,1755004262699,-400.0,0.00044931,120]
[378762227,1755004262709,-400.0,0.00044931,120]
[378762228,1755004262718,-400.0,0.00044931,120]
[378762229,1755004262727,-400.0,0.00044931,120]
[378762230,1755004262738,-328.98183328,0.00044931,120]
[378762231,1755004262747,-1298.0,0.00044931,120]
[378762232,1755004262756,-400.0,0.00044931,120]
[378762233,1755004262766,-400.0,0.00044931,120]
[378762234,1755004262775,-418.22,0.00044931,120]
[378762235,1755004262785,-537.81,0.00044931,120]
[378762236,1755004262794,-400.0,0.00044931,120]
[378762237,1755004262804,-413.98270962,0.00044931,120]
[378762238,1755004262813,-400.0,0.00044931,120]
[378762239,1755004262823,-400.0,0.00044931,120]
[378762240,1755004262836,-570.46,0.00044931,120]
[378762241,1755004262846,-1050.58,0.00044931,120]
[378762242,1755004262856,-471.06,0.00044931,120]
[378762243,1755004262865,-400.0,0.00044931,120]
[378762244,1755004262875,-401.62,0.00044931,120]
[378762245,1755004262886,-713.9,0.00044931,120]
[378762246,1755004262895,-400.0,0.00044931,120]
[378762247,1755004262906,-400.0,0.00044931,120]
[378762248,1755004262916,-400.0,0.00044931,120]
[378762249,1755004262926,-671.5,0.00044931,120]
[378762250,1755004262936,-2152.61,0.00044931,120]
[378762251,1755004262946,-400.0,0.00044931,120]
[378762252,1755004262956,-534.03,0.00044931,120]
[378762253,1755004262966,-473.25,0.00044931,120]
[378762254,1755004262976,-400.0,0.00044931,120]
[378762255,1755004262985,-400.0,0.00044931,120]
[378762256,1755004262996,-698.9,0.00044931,120]
[378762257,1755004263005,-400.0,0.00044931,120]
[378762258,1755004263016,-400.0,0.00044931,120]
[378762259,1755004263026,-400.0,0.00044931,120]
[378762260,1755004263037,-5713.31892014,0.00044966,90]
[378762261,1755004263047,-3127.54329328,0.0004498,120]
[378762262,1755004263058,-3506.73081824,0.00045,2]
[378762263,1755004263072,-6414.36841134,0.00045,120]
[378762264,1755004263084,-154.6,0.00045,85]
[378762265,1755004263094,-261.33,0.00045,120]
[378762266,1755004263104,-2500.0,0.00045,120]
[378762267,1755004263117,-30247.87346487,0.00045,2]
[378762268,1755004263127,-26000.0,0.00045,60]
[378762269,1755004263138,-155.29059034,0.00045,120]
[378762270,1755004263148,-281.26548144,0.00045,120]
[378762271,1755004263159,-300.0,0.00045,120]
[378762272,1755004263169,-700.0,0.0004501,16]
[378762273,1755004263180,-700.0,0.0004501,16]
[378762274,1755004263190,-700.0,0.0004501,16]
[378762275,1755004263200,-700.0,0.0004501,16]
[378762276,1755004263210,-700.0,0.0004501,16]
[378762277,1755004263221,-700.0,0.0004501,16]
[378762278,1755004263231,-700.0,0.0004501,16]
[378762279,1755004263240,-700.0,0.0004501,16]
[378762280,1755004263250,-700.0,0.0004501,32]
[378762281,1755004263264,-1266.0,0.00045056,30]
[378762282,1755004263275,-999.0,0.00045204,120]
[378762283,1755004263286,-873.09,0.00045205,120]
[378762284,1755004263296,-432.98730066,0.00045205,120]
[378762285,1755004263306,-400.23,0.00045205,120]
[378762286,1755004263316,-400.0,0.00045205,120]
[378762287,1755004263326,-400.0,0.00045205,120]
[378762288,1755004263336,-416.02,0.00045205,120]
[378762289,1755004263347,-473.28,0.00045205,120]
[378762290,1755004263357,-586.46,0.00045205,120]
[378762291,1755004263368,-400.0,0.00045205,120]
[378762292,1755004263378,-1996.28,0.00045205,120]
[378762293,1755004263389,-400.0,0.00045205,120]
[378762294,1755004263399,-400.0,0.00045205,120]
[378762295,1755004263410,-400.0,0.00045205,120]
[378762296,1755004263420,-1210.58,0.00045205,120]
[378762297,1755004263431,-426.00387041,0.00045205,120]
[378762298,1755004263443,-400.0,0.00045205,120]
[378762299,1755004263454,-400.0,0.00045205,120]
[378762300,1755004263476,-400.0,0.00045205,120]
[378762301,1755004263498,-465.33429834,0.00045205,120]
[378762302,1755004263516,-400.0,0.00045205,120]
[378762303,1755004263526,-440.92,0.00045205,120]
[378762304,1755004263536,-400.0,0.00045205,120]
[378762305,1755004263547,-1445.32,0.00045205,120]
[378762306,1755004263557,-942.94,0.00045205,120]
[378762307,1755004263568,-400.0,0.00045205,120]
[378762308,1755004263579,-269.25711275,0.00045205,120]
[378762309,1755004263589,-400.0,0.00045205,120]
[378762310,1755004263599,-400.0,0.00045205,120]
[378762311,1755004263610,-474.77,0.00045205,120]
[378762312,1755004263620,-400.0,0.00045205,120]
[378762313,1755004263630,-946.3,0.00045205,120]
[378762314,1755004263640,-400.0,0.00045205,120]
[378762315,1755004263650,-400.0,0.00045205,120]
[378762316,1755004263660,-886.95,0.00045205,120]
[378762317,1755004263669,-400.0,0.00045205,120]
[378762318,1755004263680,-400.0,0.00045205,120]
[378762319,1755004263690,-400.0,0.00045205,120]
[378762320,1755004263700,-646.08,0.00045205,120]
[378762321,1755004263710,-400.0,0.00045205,120]
[378762322,1755004263720,-482.08956846,0.00045205,120]
[378762323,1755004263730,-1283.2,0.00045205,120]
[378762324,1755004263740,-400.0,0.00045205,120]
[378762325,1755004263750,-400.0,0.00045205,120]
[378762326,1755004263761,-400.0,0.00045205,120]
[378762327,1755004263772,-400.0,0.00045205,120]
[378762328,1755004263782,-323.09373285,0.00045205,120]
[378762329,1755004263792,-1298.0,0.00045205,120]
[378762330,1755004263802,-400.0,0.00045205,120]
[378762331,1755004263812,-400.0,0.00045205,120]
[378762332,1755004263822,-418.22,0.00045205,120]
[378762333,1755004263832,-537.81,0.00045205,120]
[378762334,1755004263842,-223.12592386,0.00045205,120]
[378762335,1755004263852,-400.0,0.00045205,120]
[378762336,1755004263862,-540.51304696,0.00045205,120]
[378762337,1755004263872,-570.46,0.00045205,120]
[378762338,1755004263883,-1050.58,0.00045205,120]
[378762339,1755004263892,-471.06,0.00045205,120]
[378762340,1755004263902,-498.31682847,0.00045205,120]
[378762341,1755004263912,-401.62,0.00045205,120]
[378762342,1755004263922,-713.9,0.00045205,120]
[378762343,1755004263934,-400.0,0.00045205,120]
[378762344,1755004263944,-400.0,0.00045205,120]
[378762345,1755004263954,-400.0,0.00045205,120]
[378762346,1755004263965,-671.5,0.00045205,120]
[378762347,1755004263975,-2152.61,0.00045205,120]
[378762348,1755004263986,-400.0,0.00045205,120]
[378762349,1755004263996,-534.03,0.00045205,120]
[378762350,1755004264007,-473.25,0.00045205,120]
[378762351,1755004264017,-400.0,0.00045205,120]
[378762352,1755004264028,-400.0,0.00045205,120]
[378762353,1755004264038,-698.9,0.00045205,120]
[378762354,1755004264049,-411.03813914,0.00045205,120]
[378762355,1755004264059,-201.1136667,0.00045205,120]
[378762356,1755004264073,-383.324953,0.00045205,120]
[378762357,1755004264283,-168.0,0.00045265,7]
[378762358,1755004264296,-212.0,0.0004529,30]
[378762359,1755004264306,-1243.37117091,0.00045344,15]
[378762360,1755004264316,-176.99,0.00045346,14]
[378762361,1755004264326,-463.47278263,0.00045379,2]
[378762362,1755004264335,-873.09,0.00045479,120]
[378762363,1755004264345,-400.23,0.00045479,120]
[378762364,1755004264355,-400.0,0.00045479,120]
[378762365,1755004264364,-400.0,0.00045479,120]
[378762366,1755004264375,-416.02,0.00045479,120]
[378762367,1755004264385,-473.28,0.00045479,120]
[378762368,1755004264395,-586.46,0.00045479,120]
[378762369,1755004264406,-400.0,0.00045479,120]
[378762370,1755004264415,-1996.28,0.00045479,120]
[378762371,1755004264427,-400.0,0.00045479,120]
[378762372,1755004264444,-167.12184577,0.00045479,120]
[378762373,1755004264454,-400.0,0.00045479,120]
[378762374,1755004264464,-1210.58,0.00045479,120]
[378762375,1755004264474,-400.0,0.00045479,120]
[378762376,1755004264484,-400.0,0.00045479,120]
[378762377,1755004264494,-400.0,0.00045479,120]
[378762378,1755004264515,-287.66619366,0.00045479,120]
[378762379,1755004264525,-440.92,0.00045479,120]
[378762380,1755004264535,-400.0,0.00045479,120]
[378762381,1755004264546,-1445.32,0.00045479,120]
[378762382,1755004264556,-942.94,0.00045479,120]
[378762383,1755004264565,-400.0,0.00045479,120]
[378762384,1755004264575,-400.0,0.00045479,120]
[378762385,1755004264585,-400.0,0.00045479,120]
[378762386,1755004264595,-474.77,0.00045479,120]
[378762387,1755004264605,-537.70437637,0.00045479,120]
[378762388,1755004264615,-946.3,0.00045479,120]
[378762389,1755004264625,-400.0,0.00045479,120]
[378762390,1755004264635,-213.48000001,0.00045479,120]
[378762391,1755004264644,-886.95,0.00045479,120]
[378762392,1755004264653,-437.17576847,0.00045479,120]
[378762393,1755004264664,-400.0,0.00045479,120]
[378762394,1755004264674,-400.0,0.00045479,120]
[378762395,1755004264683,-646.08,0.00045479,120]
[378762396,1755004264693,-341.28235404,0.00045479,120]
[378762397,1755004264704,-1283.2,0.00045479,120]
[378762398,1755004264713,-400.0,0.00045479,120]
[378762399,1755004264722,-400.0,0.00045479,120]
[378762400,1755004264733,-400.0,0.00045479,120]
[378762401,1755004264743,-495.47652238,0.00045479,120]
[378762402,1755004264752,-1298.0,0.00045479,120]
[378762403,1755004264763,-400.0,0.00045479,120]
[378762404,1755004264773,-473.97967872,0.00045479,120]
[378762405,1755004264782,-418.22,0.00045479,120]
[378762406,1755004264792,-537.81,0.00045479,120]
[378762407,1755004264802,-400.0,0.00045479,120]
[378762408,1755004264811,-570.46,0.00045479,120]
[378762409,1755004264821,-1050.58,0.00045479,120]
[378762410,1755004264830,-471.06,0.00045479,120]
[378762411,1755004264839,-401.62,0.00045479,120]
[378762412,1755004264849,-713.9,0.00045479,120]
[378762413,1755004264860,-165.2849926,0.00045479,120]
[378762414,1755004264870,-399.98275928,0.00045479,120]
[378762415,1755004264880,-400.0,0.00045479,120]
[378762416,1755004264890,-671.5,0.00045479,120]
[378762417,1755004264900,-2152.61,0.00045479,120]
[378762418,1755004264910,-400.0,0.00045479,120]
[378762419,1755004264919,-534.03,0.00045479,120]
[378762420,1755004264929,-473.25,0.00045479,120]
[378762421,1755004264939,-400.0,0.00045479,120]
[378762422,1755004264948,-319.45190905,0.00045479,120]
[378762423,1755004264958,-698.9,0.00045479,120]
[378762424,1755004264967,-255.0,0.000455,120]
[378762425,1755004264976,-178.96,0.000455,30]
[378762426,1755004264990,-186.55,0.00045525,120]
[378762427,1755004265005,-174.49,0.000457,44]
[378762428,1755004265016,-151.88,0.00045752,120]
[378762429,1755004265025,-873.09,0.00045753,120]
[378762430,1755004265035,-400.23,0.00045753,120]
[378762431,1755004265045,-400.51434258,0.00045753,120]
[378762432,1755004265054,-273.56561795,0.00045753,120]
[378762433,1755004265064,-416.02,0.00045753,120]
[378762434,1755004265076,-473.28,0.00045753,120]
[378762435,1755004265086,-586.46,0.00045753,120]
[378762436,1755004265095,-400.0,0.00045753,120]
[378762437,1755004265105,-1996.28,0.00045753,120]
[378762438,1755004265115,-400.0,0.00045753,120]
[378762439,1755004265124,-170.31586578,0.00045753,120]
[378762440,1755004265135,-1210.58,0.00045753,120]
[378762441,1755004265146,-464.03337064,0.00045753,120]
[378762442,1755004265155,-400.0,0.00045753,120]
[378762443,1755004265164,-255.8433871,0.00045753,120]
[378762444,1755004265174,-440.92,0.00045753,120]
[378762445,1755004265184,-400.0,0.00045753,120]
[378762446,1755004265193,-1445.32,0.00045753,120]
[378762447,1755004265202,-942.94,0.00045753,120]
[378762448,1755004265212,-151.72056783,0.00045753,120]
[378762449,1755004265221,-301.01298534,0.00045753,120]
[378762450,1755004265230,-400.0,0.00045753,120]
[378762451,1755004265240,-474.77,0.00045753,120]
[378762452,1755004265250,-946.3,0.00045753,120]
[378762453,1755004265261,-400.0,0.00045753,120]
[378762454,1755004265270,-886.95,0.00045753,120]
[378762455,1755004265280,-400.0,0.00045753,120]
[378762456,1755004265289,-400.0,0.00045753,120]
[378762457,1755004265299,-646.08,0.00045753,120]
[378762458,1755004265308,-1283.2,0.00045753,120]
[378762459,1755004265318,-400.0,0.00045753,120]
[378762460,1755004265327,-400.0,0.00045753,120]
[378762461,1755004265336,-400.0,0.00045753,120]
[378762462,1755004265346,-1298.0,0.00045753,120]
[378762463,1755004265355,-242.22826861,0.00045753,120]
[378762464,1755004265365,-418.22,0.00045753,120]
[378762465,1755004265374,-537.81,0.00045753,120]
[378762466,1755004265383,-472.05750469,0.00045753,120]
[378762467,1755004265392,-570.46,0.00045753,120]
[378762468,1755004265401,-1050.58,0.00045753,120]
[378762469,1755004265411,-471.06,0.00045753,120]
[378762470,1755004265420,-401.62,0.00045753,120]
[378762471,1755004265430,-713.9,0.00045753,120]
[378762472,1755004265439,-248.58277143,0.00045753,120]
[378762473,1755004265449,-671.5,0.00045753,120]
[378762474,1755004265458,-2152.61,0.00045753,120]
[378762475,1755004265467,-351.17782725,0.00045753,120]
[378762476,1755004265476,-534.03,0.00045753,120]
[378762477,1755004265485,-473.25,0.00045753,120]
[378762478,1755004265495,-251.52864767,0.00045753,120]
[378762479,1755004265505,-698.9,0.00045753,120]
[378762480,1755004265518,-1500.0,0.000458,120]
[378762481,1755004265527,-151.0,0.000458,120]
[378762482,1755004265536,-156.83402736,0.0004589,120]
[378762483,1755004265545,-1243.37117091,0.0004589,15]
[378762484,1755004265556,-6153.31927386,0.0004589,2]
[378762485,1755004265565,-387.13826101,0.0004589,2]
[378762486,1755004265574,-1787.56135788,0.0004589,2]
[378762487,1755004265584,-955.46451225,0.0004589,2]
[378762488,1755004265593,-1040.22973582,0.000459,120]
[378762489,1755004265602,-20000.0,0.000459,120]
[378762490,1755004265611,-160.14430311,0.00045954,22]
[378762491,1755004265620,-159.54040841,0.0004598,7]
[378762492,1755004265630,-159.54040841,0.0004598,7]
[378762493,1755004265639,-1131.82078348,0.00045989,60]
[378762494,1755004265649,-11515.63065222,0.0004599,31]
[378762495,1755004265730,-615.21228009,0.0004599,31]
[378762496,1755004265742,-348.29626159,0.0004599,31]
[378762497,1755004265753,-3348.71822631,0.0004599,31]
[378762498,1755004265768,-49407.77541049,0.0004599,31]
[378762499,1755004265778,-8187.02921419,0.0004599,61]
[378762500,1755004265787,-656765.19537532,0.0004599,90]
[378762501,1755004265798,-1147.32025381,0.0004599,90]
[378762502,1755004266134,-321.32938918,0.00038984,3]
[378762503,1755004266145,-509.63669412,0.00038984,3]
[378762504,1755004266157,-57.0339167,0.00038984,3]
[378762505,1755004266167,-1776.0,0.00041224,3]
[378762506,1755004266176,-888.0,0.00041595,3]
[378762507,1755004266186,-888.0,0.00041759,3]
[378762508,1755004266195,-888.0,0.00041869,3]
[378762509,1755004266205,-400.0,0.00042465,30]
[378762510,1755004266214,-400.0,0.00042739,30]
[378762511,1755004266223,-400.0,0.00043013,30]
[378762512,1755004266232,-400.0,0.00043287,30]
[378762513,1755004266242,-484.00050009,0.00043561,30]
[378762514,1755004266260,-1776.0,0.00043835,3]
[378762515,1755004266270,-1776.0,0.00043999,3]
[378762516,1755004266279,-1776.0,0.00044109,3]
[378762517,1755004266290,-10009.71558307,0.0004599,90]
[378762518,1755004266303,-378.36330588,0.0004599,90]
[378762519,1755004266315,-619.88556278,0.0004599,90]
[378762520,1755004266326,-2531.73226778,0.0004599,90]
[378762521,1755004266405,-400.0,0.00041095,30]
[378762522,1755004266415,-402.09595716,0.00041095,30]
[378762523,1755004266424,-888.0,0.00042113,3]
[378762524,1755004266434,-98.80404284,0.00044353,3]
[378762525,1755004266445,-295.34696754,0.00044353,3]
[378762526,1755004266493,-151.0,0.00038981,2]
[378762527,1755004266502,-1381.84898962,0.00044353,3]
[378762528,1755004266514,-14887.86408579,0.0004599,90]
[378762529,1755004266525,-367.03000001,0.0004599,90]
[378762530,1755004266536,-7457.3566705,0.0004599,90]
[378762531,1755004266547,-11904.0,0.0004599,90]
[378762532,1755004266558,-591.17041195,0.0004599,90]
[378762533,1755004266569,-596.2,0.0004599,90]
[378762534,1755004266579,-823.3067419,0.0004599,90]
[378762535,1755004266590,-1263.45825904,0.0004599,90]
[378762536,1755004266601,-951.30798175,0.0004599,90]
[378762537,1755004266662,-400.0,0.00041095,30]
[378762538,1755004266671,-888.0,0.00042143,3]
[378762539,1755004266681,-888.0,0.00042407,3]
[378762540,1755004266690,-1776.0,0.00044383,3]
[378762541,1755004266699,-1260.96490724,0.00044647,3]
[378762542,1755004266709,-515.03509276,0.00044647,3]
[378762543,1755004266719,-1888.0,0.00044675,120]
[378762544,1755004266727,-35775.96474533,0.0004599,90]
[378762545,1755004266738,-2210.49573793,0.0004599,90]
[378762546,1755004266750,-489.98356444,0.0004599,90]
[378762547,1755004266876,-400.0,0.00041095,30]
[378762548,1755004266886,-400.0,0.00041095,30]
[378762549,1755004266895,-5000.0,0.00041269,2]
[378762550,1755004266903,-400.0,0.00041369,30]
[378762551,1755004266913,-400.0,0.00041643,30]
[378762552,1755004266923,-400.0,0.00041917,30]
[378762553,1755004266931,-400.0,0.00042191,30]
[378762554,1755004266941,-888.0,0.00042417,3]
[378762555,1755004266950,-400.0,0.00042465,30]
[378762556,1755004266959,-888.0,0.00042661,3]
[378762557,1755004266969,-400.0,0.00042739,30]
[378762558,1755004266978,-400.0,0.00043013,30]
[378762559,1755004266988,-400.0,0.00043287,30]
[378762560,1755004266998,-400.0,0.00043561,30]
[378762561,1755004267008,-1776.0,0.00044657,3]
[378762562,1755004267018,-1957.856,0.00044675,120]
[378762563,1755004267027,-1776.0,0.00044901,3]
[378762564,1755004267037,-102574.144,0.0004599,90]
[378762565,1755004267071,-1776.0,0.0004599,90]
[378762566,1755004267083,-1885.44133339,0.0004599,90]
[378762591,1755004804683,300.0,0.0002739,120]
[378762616,1755005108565,10600.0,0.00019,2]
[378762629,1755005203391,12592.11387497,0.00037215,120]
[378762645,1755005432449,-517.70502891,0.00017989,2]